[Event "Titled Tuesday Blitz November 15 Late 2022"]
[White "Bernat, David"]
[Black "Ghazarian, Kirk"]
[WhiteFideId "2099225"]
[BlackFideId "30908604"]
[WhiteElo "2349"]
[BlackElo "2346"]
[Result "0-1"]
[Round "01"]
[TimeControl "180+1"]
[Date "2022.11.16"]
[WhiteClock "0:00:02"]
[BlackClock "0:00:21"]

1. c4 {[%clk 0:02:58]}  b6 {[%clk 0:02:58]} 2. Nc3 {[%clk 0:02:58]}  Bb7 {[%clk 0:02:57]} 3. e4 {[%clk 0:02:58]}  c5 {[%clk 0:02:56]} 4. g3 {[%clk 0:02:58]}  g6 {[%clk 0:02:54]} 5. Bg2 {[%clk 0:02:58]}  Bg7 {[%clk 0:02:55]} 6. Nge2 {[%clk 0:02:59]}  Nc6 {[%clk 0:02:55]} 7. O-O {[%clk 0:02:59]}  e6 {[%clk 0:02:54]} 8. d3 {[%clk 0:02:59]}  Nge7 {[%clk 0:02:54]} 9. Be3 {[%clk 0:02:59]}  O-O {[%clk 0:02:55]} 10. d4 {[%clk 0:02:59]}  cxd4 {[%clk 0:02:53]} 11. Nxd4 {[%clk 0:03:00]}  Rc8 {[%clk 0:02:49]} 12. Nde2 {[%clk 0:02:47]}  Na5 {[%clk 0:02:43]} 13. b3 {[%clk 0:02:41]}  d5 {[%clk 0:02:43]} 14. exd5 {[%clk 0:02:33]}  exd5 {[%clk 0:02:44]} 15. Bg5 {[%clk 0:02:02]}  f6 {[%clk 0:02:34]} 16. Be3 {[%clk 0:01:21]}  dxc4 {[%clk 0:02:30]} 17. b4 {[%clk 0:01:04]}  Bxg2 {[%clk 0:02:28]} 18. Kxg2 {[%clk 0:01:05]}  Nac6 {[%clk 0:02:23]} 19. b5 {[%clk 0:00:53]}  Ne5 {[%clk 0:02:19]} 20. Nd4 {[%clk 0:00:53]}  Qd7 {[%clk 0:02:14]} 21. a4 {[%clk 0:00:40]}  Nd5 {[%clk 0:01:57]} 22. Nxd5 {[%clk 0:00:11]}  Qxd5+ {[%clk 0:01:58]} 23. Nf3 {[%clk 0:00:11]}  Qb7 {[%clk 0:01:43]} 24. Bf4 {[%clk 0:00:11]}  Rfd8 {[%clk 0:01:34]} 25. Qe2 {[%clk 0:00:11]}  Nxf3 {[%clk 0:01:25]} 26. Qxf3 {[%clk 0:00:11]}  Qxf3+ {[%clk 0:01:26]} 27. Kxf3 {[%clk 0:00:12]}  Rd3+ {[%clk 0:01:25]} 28. Kg2 {[%clk 0:00:09]}  f5 {[%clk 0:01:19]} 29. Ra2 {[%clk 0:00:05]}  c3 {[%clk 0:01:16]} 30. Rc1 {[%clk 0:00:05]}  Rd4 {[%clk 0:01:11]} 31. Be3 {[%clk 0:00:04]}  Rdc4 {[%clk 0:01:10]} 32. a5 {[%clk 0:00:05]}  bxa5 {[%clk 0:01:06]} 33. Bxa7 {[%clk 0:00:05]}  a4 {[%clk 0:00:51]} 34. b6 {[%clk 0:00:05]}  Rb4 {[%clk 0:00:52]} 35. Rac2 {[%clk 0:00:03]}  Rb3 {[%clk 0:00:48]} 36. Kf3 {[%clk 0:00:02]}  a3 {[%clk 0:00:37]} 37. Ke2 {[%clk 0:00:02]}  Rd8 {[%clk 0:00:21]} 0-1


[Site "https://www.chess.com"]

[Event "Titled Tuesday Blitz November 15 Late 2022"]
[White "Bogaudinov, Rushan"]
[Black "Hambleton, Aman"]
[WhiteFideId "4129288"]
[BlackFideId "2606577"]
[WhiteElo "1997"]
[BlackElo "2538"]
[Result "0-1"]
[Round "01"]
[TimeControl "180+1"]
[Date "2022.11.16"]
[WhiteClock "0:00:03"]
[BlackClock "0:00:10"]

1. d4 {[%clk 0:02:58]}  Nf6 {[%clk 0:02:59]} 2. Nf3 {[%clk 0:02:57]}  e6 {[%clk 0:02:57]} 3. g3 {[%clk 0:02:57]}  b5 {[%clk 0:02:56]} 4. Bg2 {[%clk 0:02:57]}  Bb7 {[%clk 0:02:57]} 5. O-O {[%clk 0:02:57]}  d5 {[%clk 0:02:57]} 6. a4 {[%clk 0:02:56]}  b4 {[%clk 0:02:58]} 7. Nbd2 {[%clk 0:02:54]}  Be7 {[%clk 0:02:53]} 8. Nb3 {[%clk 0:02:53]}  O-O {[%clk 0:02:32]} 9. Ne5 {[%clk 0:02:48]}  Nc6 {[%clk 0:02:02]} 10. Bf4 {[%clk 0:02:42]}  Nxe5 {[%clk 0:01:44]} 11. Bxe5 {[%clk 0:02:42]}  Nd7 {[%clk 0:01:45]} 12. Bf4 {[%clk 0:02:42]}  c5 {[%clk 0:01:42]} 13. Re1 {[%clk 0:02:29]}  cxd4 {[%clk 0:01:32]} 14. Qxd4 {[%clk 0:02:11]}  a5 {[%clk 0:01:26]} 15. e4 {[%clk 0:01:46]}  Bf6 {[%clk 0:00:57]} 16. e5 {[%clk 0:01:43]}  Be7 {[%clk 0:00:58]} 17. Be3 {[%clk 0:01:37]}  Qc7 {[%clk 0:00:53]} 18. Qd3 {[%clk 0:01:30]}  Nxe5 {[%clk 0:00:51]} 19. Qe2 {[%clk 0:01:22]}  Ba6 {[%clk 0:00:33]} 20. Qd1 {[%clk 0:01:18]}  Nc4 {[%clk 0:00:17]} 21. Bf4 {[%clk 0:00:57]}  Bd6 {[%clk 0:00:11]} 22. Bc1 {[%clk 0:00:53]}  Rac8 {[%clk 0:00:10]} 23. Nd4 {[%clk 0:00:49]}  Qb6 {[%clk 0:00:07]} 24. b3 {[%clk 0:00:43]}  Na3 {[%clk 0:00:06]} 25. Be3 {[%clk 0:00:39]}  Bc5 {[%clk 0:00:06]} 26. Qg4 {[%clk 0:00:34]}  Rfe8 {[%clk 0:00:04]} 27. Rad1 {[%clk 0:00:20]}  Rcd8 {[%clk 0:00:03]} 28. Bh6 {[%clk 0:00:16]}  Bf8 {[%clk 0:00:04]} 29. h4 {[%clk 0:00:08]}  Bc8 {[%clk 0:00:03]} 30. Be3 {[%clk 0:00:08]}  Qc7 {[%clk 0:00:03]} 31. h5 {[%clk 0:00:08]}  e5 {[%clk 0:00:03]} 32. Nf5 {[%clk 0:00:08]}  g6 {[%clk 0:00:04]} 33. Qg5 {[%clk 0:00:07]}  Bxf5 {[%clk 0:00:03]} 34. Bxd5 {[%clk 0:00:06]}  Be6 {[%clk 0:00:02]} 35. Bf3 {[%clk 0:00:06]}  Rxd1 {[%clk 0:00:03]} 36. Rxd1 {[%clk 0:00:06]}  Qe7 {[%clk 0:00:03]} 37. Qxe7 {[%clk 0:00:04]}  Bxe7 {[%clk 0:00:04]} 38. hxg6 {[%clk 0:00:05]}  hxg6 {[%clk 0:00:04]} 39. Bb6 {[%clk 0:00:05]}  Nxc2 {[%clk 0:00:04]} 40. Bxa5 {[%clk 0:00:05]}  Nd4 {[%clk 0:00:05]} 41. Bg2 {[%clk 0:00:04]}  Nxb3 {[%clk 0:00:05]} 42. Bxb4 {[%clk 0:00:04]}  Bxb4 {[%clk 0:00:06]} 43. Rb1 {[%clk 0:00:04]}  Ba5 {[%clk 0:00:06]} 44. Be4 {[%clk 0:00:04]}  Rb8 {[%clk 0:00:06]} 45. Bc2 {[%clk 0:00:04]}  Rb4 {[%clk 0:00:07]} 46. Rb2 {[%clk 0:00:03]}  Nd4 {[%clk 0:00:07]} 47. Rxb4 {[%clk 0:00:02]}  Bxb4 {[%clk 0:00:08]} 48. Bd3 {[%clk 0:00:03]}  Bd7 {[%clk 0:00:08]} 49. f4 {[%clk 0:00:02]}  exf4 {[%clk 0:00:08]} 50. gxf4 {[%clk 0:00:02]}  Bxa4 {[%clk 0:00:09]} 51. Kf2 {[%clk 0:00:03]}  Kg7 {[%clk 0:00:09]} 52. Ke3 {[%clk 0:00:03]}  Nf5+ {[%clk 0:00:09]} 53. Ke4 {[%clk 0:00:04]}  Bc6+ {[%clk 0:00:10]} 54. Ke5 {[%clk 0:00:03]}  Bc3# {[%clk 0:00:10]} 0-1


[Site "https://www.chess.com"]

[Event "Titled Tuesday Blitz November 15 Late 2022"]
[White "Chigaev, Maksim"]
[Black "Palencia Morales, Wilson Guillermo"]
[WhiteFideId "4108116"]
[BlackFideId "4401859"]
[WhiteElo "2541"]
[BlackElo "2160"]
[Result "1-0"]
[Round "01"]
[TimeControl "180+1"]
[Date "2022.11.15"]
[WhiteClock "0:00:25"]
[BlackClock "0:00:02"]

1. Nf3 {[%clk 0:02:57]}  g6 {[%clk 0:02:59]} 2. e4 {[%clk 0:02:57]}  Bg7 {[%clk 0:02:59]} 3. d4 {[%clk 0:02:57]}  c5 {[%clk 0:02:58]} 4. d5 {[%clk 0:02:54]}  d6 {[%clk 0:02:57]} 5. Nc3 {[%clk 0:02:54]}  Nf6 {[%clk 0:02:57]} 6. h3 {[%clk 0:02:54]}  O-O {[%clk 0:02:56]} 7. Be2 {[%clk 0:02:52]}  e6 {[%clk 0:02:56]} 8. dxe6 {[%clk 0:02:47]}  Bxe6 {[%clk 0:02:57]} 9. O-O {[%clk 0:02:47]}  d5 {[%clk 0:02:53]} 10. Ng5 {[%clk 0:02:44]}  d4 {[%clk 0:02:50]} 11. Nb1 {[%clk 0:02:26]}  Bd7 {[%clk 0:02:45]} 12. Nd2 {[%clk 0:02:17]}  Bc6 {[%clk 0:02:38]} 13. Bd3 {[%clk 0:02:12]}  Nbd7 {[%clk 0:02:35]} 14. Re1 {[%clk 0:02:08]}  Re8 {[%clk 0:02:31]} 15. Bc4 {[%clk 0:02:08]}  Ne5 {[%clk 0:02:30]} 16. Bb3 {[%clk 0:02:06]}  h6 {[%clk 0:02:27]} 17. Ngf3 {[%clk 0:02:04]}  Nfd7 {[%clk 0:02:26]} 18. Nxe5 {[%clk 0:01:51]}  Nxe5 {[%clk 0:02:27]} 19. f4 {[%clk 0:01:49]}  Nd7 {[%clk 0:02:23]} 20. e5 {[%clk 0:01:49]}  Nf8 {[%clk 0:02:19]} 21. Ne4 {[%clk 0:01:48]}  Qb6 {[%clk 0:01:56]} 22. Nd6 {[%clk 0:01:43]}  Re7 {[%clk 0:01:53]} 23. Kh1 {[%clk 0:01:44]}  Qc7 {[%clk 0:01:15]} 24. a4 {[%clk 0:01:35]}  Kh7 {[%clk 0:01:10]} 25. Bd2 {[%clk 0:01:34]}  f5 {[%clk 0:01:03]} 26. c3 {[%clk 0:01:17]}  dxc3 {[%clk 0:01:00]} 27. Bxc3 {[%clk 0:01:15]}  Ne6 {[%clk 0:01:00]} 28. Qd2 {[%clk 0:01:12]}  Be4 {[%clk 0:00:51]} 29. Nxe4 {[%clk 0:01:00]}  fxe4 {[%clk 0:00:51]} 30. Rxe4 {[%clk 0:01:01]}  Rd8 {[%clk 0:00:50]} 31. Qf2 {[%clk 0:01:00]}  Qc6 {[%clk 0:00:44]} 32. Rae1 {[%clk 0:01:00]}  Rf8 {[%clk 0:00:37]} 33. Qg3 {[%clk 0:00:56]}  Ref7 {[%clk 0:00:26]} 34. Bd2 {[%clk 0:00:42]}  Qb6 {[%clk 0:00:21]} 35. a5 {[%clk 0:00:39]}  Qc6 {[%clk 0:00:19]} 36. Bc1 {[%clk 0:00:38]}  Re7 {[%clk 0:00:19]} 37. Bxe6 {[%clk 0:00:33]}  Qxe6 {[%clk 0:00:18]} 38. Qc3 {[%clk 0:00:31]}  b6 {[%clk 0:00:16]} 39. axb6 {[%clk 0:00:32]}  axb6 {[%clk 0:00:17]} 40. Qc2 {[%clk 0:00:33]}  Rf5 {[%clk 0:00:16]} 41. Qe2 {[%clk 0:00:32]}  Ref7 {[%clk 0:00:15]} 42. Kh2 {[%clk 0:00:33]}  g5 {[%clk 0:00:15]} 43. g4 {[%clk 0:00:32]}  Rxf4 {[%clk 0:00:14]} 44. Bxf4 {[%clk 0:00:33]}  gxf4 {[%clk 0:00:14]} 45. Qf3 {[%clk 0:00:33]}  Qd5 {[%clk 0:00:12]} 46. e6 {[%clk 0:00:33]}  Re7 {[%clk 0:00:04]} 47. Qxf4 {[%clk 0:00:30]}  Qd3 {[%clk 0:00:04]} 48. Qf5+ {[%clk 0:00:28]}  Kh8 {[%clk 0:00:04]} 49. R1e2 {[%clk 0:00:28]}  c4 {[%clk 0:00:03]} 50. Kg2 {[%clk 0:00:27]}  c3 {[%clk 0:00:03]} 51. bxc3 {[%clk 0:00:28]}  Qxc3 {[%clk 0:00:03]} 52. Qf3 {[%clk 0:00:26]}  Qc6 {[%clk 0:00:03]} 53. R4e3 {[%clk 0:00:26]}  Qc5 {[%clk 0:00:03]} 54. Rd3 {[%clk 0:00:25]}  Qg5 {[%clk 0:00:01]} 55. Rd8+ {[%clk 0:00:25]}  Kh7 {[%clk 0:00:02]} 56. Qf5+ {[%clk 0:00:24]}  Qxf5 {[%clk 0:00:02]} 57. gxf5 {[%clk 0:00:25]} 1-0


[Site "https://www.chess.com"]

[Event "Titled Tuesday Blitz November 15 Late 2022"]
[White "Claverie, Christophe"]
[Black "Winkels, Marcel"]
[WhiteFideId "605514"]
[BlackFideId "1003887"]
[WhiteElo "2300"]
[BlackElo "1900"]
[Result "1-0"]
[Round "01"]
[TimeControl "180+1"]
[Date "2022.11.16"]
[WhiteClock "0:00:27"]
[BlackClock "0:00:02"]

1. d4 {[%clk 0:02:59]}  Nf6 {[%clk 0:02:57]} 2. Bg5 {[%clk 0:02:52]}  d5 {[%clk 0:02:54]} 3. Bxf6 {[%clk 0:02:52]}  gxf6 {[%clk 0:02:53]} 4. e3 {[%clk 0:02:53]}  Bg7 {[%clk 0:02:52]} 5. Nf3 {[%clk 0:02:52]}  O-O {[%clk 0:02:49]} 6. Be2 {[%clk 0:02:52]}  Nd7 {[%clk 0:02:43]} 7. O-O {[%clk 0:02:51]}  e5 {[%clk 0:02:42]} 8. c4 {[%clk 0:02:49]}  e4 {[%clk 0:02:38]} 9. Nh4 {[%clk 0:02:47]}  Nb6 {[%clk 0:02:31]} 10. cxd5 {[%clk 0:02:40]}  Qxd5 {[%clk 0:02:29]} 11. Nc3 {[%clk 0:02:38]}  Qg5 {[%clk 0:02:26]} 12. g3 {[%clk 0:02:38]}  f5 {[%clk 0:02:15]} 13. a4 {[%clk 0:02:10]}  a5 {[%clk 0:02:09]} 14. Nb5 {[%clk 0:02:00]}  Qe7 {[%clk 0:02:01]} 15. Qc2 {[%clk 0:01:53]}  c6 {[%clk 0:02:00]} 16. Na3 {[%clk 0:01:47]}  Nd5 {[%clk 0:01:58]} 17. Nc4 {[%clk 0:01:45]}  Be6 {[%clk 0:01:54]} 18. Qd2 {[%clk 0:01:36]}  Nb4 {[%clk 0:01:35]} 19. f3 {[%clk 0:01:33]}  Bf6 {[%clk 0:01:10]} 20. Ng2 {[%clk 0:01:31]}  Rfd8 {[%clk 0:00:59]} 21. Qc1 {[%clk 0:01:18]}  b5 {[%clk 0:00:53]} 22. axb5 {[%clk 0:01:16]}  cxb5 {[%clk 0:00:52]} 23. Nxa5 {[%clk 0:01:16]}  Rac8 {[%clk 0:00:46]} 24. Qd1 {[%clk 0:01:12]}  Nc2 {[%clk 0:00:42]} 25. Rc1 {[%clk 0:01:09]}  Nb4 {[%clk 0:00:37]} 26. Nf4 {[%clk 0:01:03]}  Qa7 {[%clk 0:00:24]} 27. fxe4 {[%clk 0:00:57]}  Qxa5 {[%clk 0:00:20]} 28. exf5 {[%clk 0:00:54]}  Bxf5 {[%clk 0:00:19]} 29. Nh5 {[%clk 0:00:54]}  Bg5 {[%clk 0:00:17]} 30. Qd2 {[%clk 0:00:50]}  Bg6 {[%clk 0:00:16]} 31. Nf4 {[%clk 0:00:49]}  Bf6 {[%clk 0:00:16]} 32. Nxg6 {[%clk 0:00:48]}  hxg6 {[%clk 0:00:14]} 33. Rxf6 {[%clk 0:00:48]}  Rxc1+ {[%clk 0:00:11]} 34. Qxc1 {[%clk 0:00:49]}  Nd5 {[%clk 0:00:10]} 35. Rc6 {[%clk 0:00:39]}  Qb4 {[%clk 0:00:08]} 36. Bf3 {[%clk 0:00:36]}  Ne7 {[%clk 0:00:06]} 37. Rc7 {[%clk 0:00:35]}  Nf5 {[%clk 0:00:06]} 38. Be4 {[%clk 0:00:30]}  Qd6 {[%clk 0:00:06]} 39. Bxf5 {[%clk 0:00:28]}  gxf5 {[%clk 0:00:06]} 40. Qc6 {[%clk 0:00:29]}  b4 {[%clk 0:00:05]} 41. Qxd6 {[%clk 0:00:28]}  Rxd6 {[%clk 0:00:05]} 42. Rb7 {[%clk 0:00:29]}  Re6 {[%clk 0:00:03]} 43. Kf2 {[%clk 0:00:29]}  Rc6 {[%clk 0:00:02]} 44. Rxb4 {[%clk 0:00:26]}  Rc2+ {[%clk 0:00:02]} 45. Kf3 {[%clk 0:00:27]} 1-0


[Site "https://www.chess.com"]

[Event "Titled Tuesday Blitz November 15 Late 2022"]
[White "Coleman, Maxx"]
[Black "Steenbekkers, Franck"]
[WhiteFideId "2027119"]
[BlackFideId "1004220"]
[WhiteElo "2278"]
[BlackElo "2032"]
[Result "1-0"]
[Round "01"]
[TimeControl "180+1"]
[Date "2022.11.16"]
[WhiteClock "0:00:56"]
[BlackClock "0:00:51"]

1. Nf3 {[%clk 0:02:59]}  c5 {[%clk 0:02:57]} 2. e4 {[%clk 0:02:58]}  Nc6 {[%clk 0:02:55]} 3. d4 {[%clk 0:02:58]}  cxd4 {[%clk 0:02:53]} 4. Nxd4 {[%clk 0:02:59]}  Nf6 {[%clk 0:02:53]} 5. Nc3 {[%clk 0:02:58]}  e5 {[%clk 0:02:52]} 6. Ndb5 {[%clk 0:02:57]}  d6 {[%clk 0:02:51]} 7. Nd5 {[%clk 0:02:55]}  Nxd5 {[%clk 0:02:48]} 8. exd5 {[%clk 0:02:56]}  Nb8 {[%clk 0:02:48]} 9. Qf3 {[%clk 0:02:56]}  Be7 {[%clk 0:02:40]} 10. Qc3 {[%clk 0:02:31]}  Na6 {[%clk 0:02:24]} 11. Be3 {[%clk 0:02:31]}  O-O {[%clk 0:01:56]} 12. Nxa7 {[%clk 0:02:27]}  Bf5 {[%clk 0:01:53]} 13. Bxa6 {[%clk 0:02:21]}  bxa6 {[%clk 0:01:50]} 14. Nc6 {[%clk 0:02:22]}  Qd7 {[%clk 0:01:46]} 15. O-O {[%clk 0:02:21]}  Bf6 {[%clk 0:01:42]} 16. Qd2 {[%clk 0:02:16]}  e4 {[%clk 0:01:41]} 17. Bd4 {[%clk 0:02:12]}  Bxd4 {[%clk 0:01:26]} 18. Qxd4 {[%clk 0:02:13]}  Rac8 {[%clk 0:01:23]} 19. f3 {[%clk 0:02:06]}  Rfe8 {[%clk 0:01:21]} 20. Rae1 {[%clk 0:02:05]}  exf3 {[%clk 0:01:14]} 21. Rxe8+ {[%clk 0:01:59]}  Rxe8 {[%clk 0:01:12]} 22. Rxf3 {[%clk 0:01:48]}  Bxc2 {[%clk 0:01:10]} 23. h3 {[%clk 0:01:41]}  h6 {[%clk 0:01:06]} 24. Rg3 {[%clk 0:01:25]}  Bg6 {[%clk 0:01:00]} 25. Re3 {[%clk 0:00:57]}  Rxe3 {[%clk 0:00:52]} 26. Qxe3 {[%clk 0:00:57]}  Qf5 {[%clk 0:00:51]} 27. Ne7+ {[%clk 0:00:56]} 1-0


[Site "https://www.chess.com"]

[Event "Titled Tuesday Blitz November 15 Late 2022"]
[White "Crevatin, Leo"]
[Black "Prithu Gupta"]
[WhiteFideId "1726307"]
[BlackFideId "46618546"]
[WhiteElo "2208"]
[BlackElo "2344"]
[Result "0-1"]
[Round "01"]
[TimeControl "180+1"]
[Date "2022.11.16"]
[WhiteClock "0:00:02"]
[BlackClock "0:00:13"]

1. d4 {[%clk 0:02:58]}  Nf6 {[%clk 0:02:57]} 2. Bf4 {[%clk 0:02:55]}  d5 {[%clk 0:02:55]} 3. e3 {[%clk 0:02:55]}  Bf5 {[%clk 0:02:44]} 4. Bd3 {[%clk 0:02:49]}  Bxd3 {[%clk 0:02:42]} 5. cxd3 {[%clk 0:02:49]}  e6 {[%clk 0:02:43]} 6. Nf3 {[%clk 0:02:44]}  Bd6 {[%clk 0:02:42]} 7. Ne5 {[%clk 0:02:40]}  O-O {[%clk 0:02:42]} 8. O-O {[%clk 0:02:39]}  c5 {[%clk 0:02:41]} 9. dxc5 {[%clk 0:02:37]}  Bxc5 {[%clk 0:02:41]} 10. Qb3 {[%clk 0:02:37]}  Qb6 {[%clk 0:02:39]} 11. Nc3 {[%clk 0:02:33]}  Qxb3 {[%clk 0:02:36]} 12. axb3 {[%clk 0:02:33]}  Na6 {[%clk 0:02:31]} 13. d4 {[%clk 0:02:20]}  Be7 {[%clk 0:02:30]} 14. Nd3 {[%clk 0:02:20]}  Rfc8 {[%clk 0:02:29]} 15. Rfc1 {[%clk 0:02:19]}  Rc6 {[%clk 0:02:10]} 16. f3 {[%clk 0:01:41]}  Nh5 {[%clk 0:02:03]} 17. Nb5 {[%clk 0:01:32]}  Nxf4 {[%clk 0:01:59]} 18. Rxc6 {[%clk 0:01:24]}  Nxd3 {[%clk 0:01:53]} 19. Rc2 {[%clk 0:01:15]}  Ndb4 {[%clk 0:01:49]} 20. Rd2 {[%clk 0:01:15]}  Nc6 {[%clk 0:01:44]} 21. Kf2 {[%clk 0:01:14]}  Nab4 {[%clk 0:01:43]} 22. Rc1 {[%clk 0:01:12]}  a6 {[%clk 0:01:42]} 23. Nc3 {[%clk 0:01:12]}  f5 {[%clk 0:01:36]} 24. Ne2 {[%clk 0:01:11]}  g5 {[%clk 0:01:34]} 25. g4 {[%clk 0:01:09]}  Kf7 {[%clk 0:01:33]} 26. gxf5 {[%clk 0:01:09]}  exf5 {[%clk 0:01:34]} 27. Ng3 {[%clk 0:01:08]}  Ke6 {[%clk 0:01:35]} 28. e4 {[%clk 0:01:08]}  fxe4 {[%clk 0:01:33]} 29. fxe4 {[%clk 0:01:09]}  g4 {[%clk 0:01:30]} 30. exd5+ {[%clk 0:01:02]}  Kxd5 {[%clk 0:01:29]} 31. Kg2 {[%clk 0:00:54]}  Rf8 {[%clk 0:01:17]} 32. Re1 {[%clk 0:00:48]}  Rf3 {[%clk 0:01:04]} 33. Ne4 {[%clk 0:00:42]}  Bh4 {[%clk 0:00:57]} 34. Nc3+ {[%clk 0:00:41]}  Kd6 {[%clk 0:00:56]} 35. Re8 {[%clk 0:00:40]}  Ne7 {[%clk 0:00:46]} 36. Rh8 {[%clk 0:00:33]}  Nf5 {[%clk 0:00:32]} 37. Ne4+ {[%clk 0:00:28]}  Kc6 {[%clk 0:00:32]} 38. Rc8+ {[%clk 0:00:11]}  Kb6 {[%clk 0:00:32]} 39. Rc1 {[%clk 0:00:11]}  Nd3 {[%clk 0:00:24]} 40. Rb1 {[%clk 0:00:07]}  Ne3+ {[%clk 0:00:18]} 41. Kg1 {[%clk 0:00:07]}  Be1 {[%clk 0:00:14]} 42. Rxe1 {[%clk 0:00:02]}  Nxe1 {[%clk 0:00:13]} 0-1


[Site "https://www.chess.com"]

[Event "Titled Tuesday Blitz November 15 Late 2022"]
[White "D`Arruda, Ricardo D."]
[Black "Kamsky, Gata"]
[WhiteFideId "100692"]
[BlackFideId "2000024"]
[WhiteElo "2495"]
[BlackElo "2666"]
[Result "0-1"]
[Round "01"]
[TimeControl "180+1"]
[Date "2022.11.16"]
[WhiteClock "0:00:07"]
[BlackClock "0:00:06"]

1. Nf3 {[%clk 0:03:00]}  Nf6 {[%clk 0:02:59]} 2. d4 {[%clk 0:03:00]}  g6 {[%clk 0:02:57]} 3. Nc3 {[%clk 0:03:00]}  d5 {[%clk 0:02:56]} 4. Bg5 {[%clk 0:02:59]}  Bg7 {[%clk 0:02:55]} 5. Bxf6 {[%clk 0:02:59]}  Bxf6 {[%clk 0:02:54]} 6. e4 {[%clk 0:03:00]}  c6 {[%clk 0:02:45]} 7. Bd3 {[%clk 0:02:58]}  Bg4 {[%clk 0:02:43]} 8. e5 {[%clk 0:02:57]}  Bg7 {[%clk 0:02:42]} 9. h3 {[%clk 0:02:46]}  Bxf3 {[%clk 0:02:42]} 10. Qxf3 {[%clk 0:02:46]}  e6 {[%clk 0:02:42]} 11. Ne2 {[%clk 0:02:44]}  Qb6 {[%clk 0:02:39]} 12. O-O {[%clk 0:02:37]}  O-O {[%clk 0:02:38]} 13. Rab1 {[%clk 0:02:34]}  c5 {[%clk 0:02:36]} 14. c3 {[%clk 0:02:34]}  Nc6 {[%clk 0:02:35]} 15. Qe3 {[%clk 0:02:26]}  cxd4 {[%clk 0:02:33]} 16. cxd4 {[%clk 0:02:27]}  Rae8 {[%clk 0:02:29]} 17. b4 {[%clk 0:02:17]}  f6 {[%clk 0:02:28]} 18. b5 {[%clk 0:02:15]}  Ne7 {[%clk 0:02:14]} 19. f4 {[%clk 0:02:07]}  f5 {[%clk 0:01:43]} 20. a4 {[%clk 0:02:01]}  Rc8 {[%clk 0:01:32]} 21. Rfc1 {[%clk 0:01:58]}  Rxc1+ {[%clk 0:01:28]} 22. Rxc1 {[%clk 0:01:58]}  Rc8 {[%clk 0:01:28]} 23. Rxc8+ {[%clk 0:01:56]}  Nxc8 {[%clk 0:01:28]} 24. Qc1 {[%clk 0:01:53]}  Qd8 {[%clk 0:01:27]} 25. a5 {[%clk 0:01:42]}  Bf8 {[%clk 0:01:24]} 26. a6 {[%clk 0:01:42]}  bxa6 {[%clk 0:01:22]} 27. bxa6 {[%clk 0:01:43]}  Nb6 {[%clk 0:01:16]} 28. Qc6 {[%clk 0:01:41]}  Qd7 {[%clk 0:01:14]} 29. Qb7 {[%clk 0:01:39]}  Bb4 {[%clk 0:01:10]} 30. g4 {[%clk 0:01:18]}  Kf7 {[%clk 0:00:57]} 31. gxf5 {[%clk 0:01:17]}  gxf5 {[%clk 0:00:56]} 32. Kf2 {[%clk 0:01:12]}  Qe7 {[%clk 0:00:55]} 33. Kf3 {[%clk 0:01:09]}  Kg6 {[%clk 0:00:51]} 34. Qc6 {[%clk 0:01:00]}  Qd7 {[%clk 0:00:45]} 35. Qb7 {[%clk 0:00:49]}  Qe7 {[%clk 0:00:36]} 36. Ng3 {[%clk 0:00:40]}  Qd7 {[%clk 0:00:25]} 37. h4 {[%clk 0:00:37]}  Be1 {[%clk 0:00:21]} 38. h5+ {[%clk 0:00:36]}  Kh6 {[%clk 0:00:21]} 39. Qxd7 {[%clk 0:00:33]}  Nxd7 {[%clk 0:00:21]} 40. Bb5 {[%clk 0:00:32]}  Nb6 {[%clk 0:00:17]} 41. Be8 {[%clk 0:00:31]}  Kg7 {[%clk 0:00:16]} 42. Ne2 {[%clk 0:00:25]}  Kf8 {[%clk 0:00:15]} 43. Bc6 {[%clk 0:00:24]}  h6 {[%clk 0:00:14]} 44. Ke3 {[%clk 0:00:24]}  Ke7 {[%clk 0:00:12]} 45. Kd3 {[%clk 0:00:24]}  Bb4 {[%clk 0:00:11]} 46. Ng3 {[%clk 0:00:19]}  Kd8 {[%clk 0:00:11]} 47. Ne2 {[%clk 0:00:19]}  Nc8 {[%clk 0:00:10]} 48. Nc1 {[%clk 0:00:15]}  Kc7 {[%clk 0:00:09]} 49. Be8 {[%clk 0:00:12]}  Ne7 {[%clk 0:00:06]} 50. Bf7 {[%clk 0:00:12]}  Kd7 {[%clk 0:00:06]} 51. Nb3 {[%clk 0:00:12]}  Nc6 {[%clk 0:00:06]} 52. Nc5+ {[%clk 0:00:11]}  Bxc5 {[%clk 0:00:06]} 53. dxc5 {[%clk 0:00:12]}  Ke7 {[%clk 0:00:05]} 54. Bg8 {[%clk 0:00:10]}  Nb4+ {[%clk 0:00:05]} 55. Kd4 {[%clk 0:00:09]}  Nxa6 {[%clk 0:00:05]} 56. c6 {[%clk 0:00:09]}  Nc7 {[%clk 0:00:05]} 57. Kc5 {[%clk 0:00:09]}  a5 {[%clk 0:00:04]} 58. Kb6 {[%clk 0:00:07]}  a4 {[%clk 0:00:03]} 59. Kxc7 {[%clk 0:00:07]}  a3 {[%clk 0:00:04]} 60. Kb7 {[%clk 0:00:07]}  a2 {[%clk 0:00:04]} 61. c7 {[%clk 0:00:07]}  a1=Q {[%clk 0:00:04]} 62. c8=Q {[%clk 0:00:08]}  Qb2+ {[%clk 0:00:05]} 63. Ka8 {[%clk 0:00:08]}  Qa3+ {[%clk 0:00:05]} 64. Kb8 {[%clk 0:00:08]}  Qb4+ {[%clk 0:00:05]} 65. Qb7+ {[%clk 0:00:09]}  Qxb7+ {[%clk 0:00:05]} 66. Kxb7 {[%clk 0:00:10]}  d4 {[%clk 0:00:05]} 67. Kc6 {[%clk 0:00:07]}  d3 {[%clk 0:00:06]} 0-1


[Site "https://www.chess.com"]